fUST/lending_fUST_20251006
["ID","MTS","AMOUNT","RATE_DAILY","PERIOD"]
[389531424,1759701044083,-500.0,0.00016712,2]
[389531425,1759701044093,-500.0,0.00016712,2]
[389531426,1759701044103,-9745.82,0.00016712,2]
[389531427,1759701044112,-262.27717494,0.00016712,2]
[389531428,1759701044121,-716.61,0.00016712,2]
[389531429,1759701044131,-1089.67,0.00016712,2]
[389531430,1759701044140,-500.0,0.00016712,2]
[389531431,1759701044153,-500.0,0.00016712,2]
[389531432,1759701044162,-300.0,0.00016765,2]
[389531433,1759701044171,-300.0,0.00016765,2]
[389531434,1759701044180,-300.0,0.00016765,2]
[389531435,1759701044189,-300.0,0.00016765,2]
[389531436,1759701044198,-300.0,0.00016765,2]
[389531437,1759701044207,-300.0,0.00016765,2]
[389531438,1759701044216,-300.0,0.00016765,2]
[389531439,1759701044226,-300.0,0.00016765,2]
[389531440,1759701044234,-300.0,0.00016765,2]
[389531441,1759701044244,-300.0,0.00016765,2]
[389531442,1759701044253,-300.0,0.00016765,2]
[389531443,1759701044262,-300.0,0.00016765,2]
[389531444,1759701044271,-300.0,0.00016765,2]
[389531445,1759701044281,-300.0,0.00016765,2]
[389531446,1759701044290,-300.0,0.00016765,2]
[389531447,1759701044300,-600.0,0.00016765,2]
[389531448,1759701044310,-324.0,0.00016836,2]
[389531449,1759701044319,-192.27985158,0.00016894,2]
[389531450,1759701044329,-18603.8837,0.00016894,2]
[389531451,1759701044338,-1957.856,0.00016894,2]
[389531452,1759701044347,-2233.0,0.00016894,2]
[389531453,1759701044357,-500.0,0.00016986,2]
[389531454,1759701044366,-500.0,0.00016986,2]
[389531455,1759701044376,-500.0,0.00016986,2]
[389531456,1759701044385,-552.1,0.00016986,2]
[389531457,1759701044395,-500.0,0.00016986,2]
[389531458,1759701044409,-500.0,0.00016986,2]
[389531459,1759701044418,-500.0,0.00016986,2]
[389531460,1759701044433,-480.0,0.00016986,2]
[389531461,1759701044444,-500.0,0.00016986,2]
[389531462,1759701044453,-500.0,0.00016986,2]
[389531463,1759701044463,-500.0,0.00016986,2]
[389531464,1759701044472,-500.0,0.00016986,2]
[389531465,1759701044482,-500.0,0.00016986,2]
[389531466,1759701044491,-500.0,0.00016986,2]
[389531467,1759701044501,-500.0,0.00016986,2]
[389531468,1759701044510,-500.0,0.00016986,2]
[389531469,1759701044519,-500.0,0.00016986,2]
[389531470,1759701044529,-500.0,0.00016986,2]
[389531471,1759701044538,-500.0,0.00016986,2]
[389531472,1759701044547,-500.0,0.00016986,2]
[389531473,1759701044556,-500.0,0.00016986,2]
[389531474,1759701044565,-500.0,0.00016986,2]
[389531475,1759701044575,-500.0,0.00016986,2]
[389531476,1759701044584,-500.0,0.00016986,2]
[389531477,1759701044593,-500.0,0.00016986,2]
[389531478,1759701044602,-1523.87,0.00016986,2]
[389531479,1759701044612,-500.0,0.00016986,2]
[389531480,1759701044621,-500.0,0.00016986,2]
[389531481,1759701044630,-500.0,0.00016986,2]
[389531482,1759701044684,-500.0,0.00016986,2]
[389531483,1759701044693,-500.0,0.00016986,2]
[389531484,1759701044703,-500.0,0.00016986,2]
[389531485,1759701044711,-500.0,0.00016986,2]
[389531486,1759701044720,-500.0,0.00016986,2]
[389531487,1759701044729,-500.0,0.00016986,2]
[389531488,1759701044738,-500.0,0.00016986,2]
[389531489,1759701044747,-500.0,0.00016986,2]
[389531490,1759701044757,-837.66,0.00016986,2]
[389531491,1759701044766,-500.0,0.00016986,2]
[389531492,1759701044775,-500.0,0.00016986,2]
[389531493,1759701044785,-1256.54,0.00016986,2]
[389531494,1759701044794,-500.0,0.00016986,2]
[389531495,1759701044803,-500.0,0.00016986,2]
[389531496,1759701044812,-500.0,0.00016986,2]
[389531497,1759701044820,-500.0,0.00016986,2]
[389531498,1759701044830,-500.0,0.00016986,2]
[389531499,1759701044839,-723.41,0.00016986,2]
[389531500,1759701044847,-470.33937899,0.00016986,2]
[389531501,1759701044856,-500.0,0.00016986,2]
[389531502,1759701044865,-500.0,0.00016986,2]
[389531503,1759701044874,-500.0,0.00016986,2]
[389531504,1759701044883,-647.73,0.00016986,2]
[389531505,1759701044892,-500.0,0.00016986,2]
[389531506,1759701044901,-500.0,0.00016986,2]
[389531507,1759701044910,-500.0,0.00016986,2]
[389531508,1759701044919,-500.0,0.00016986,2]
[389531509,1759701044927,-500.0,0.00016986,2]
[389531510,1759701044937,-500.0,0.00016986,2]
[389531511,1759701044946,-338.48811205,0.00016986,2]
[389531512,1759701044955,-500.0,0.00016986,2]
[389531513,1759701044965,-629.62,0.00016986,2]
[389531514,1759701044974,-500.9,0.00016986,2]
[389531515,1759701044983,-500.96,0.00016986,2]
[389531516,1759701044992,-500.0,0.00016986,2]
[389531517,1759701045001,-500.0,0.00016986,2]
[389531518,1759701045010,-500.0,0.00016986,2]
[389531519,1759701045019,-777.32,0.00016986,2]
[389531520,1759701045028,-500.0,0.00016986,2]
[389531521,1759701045038,-500.0,0.00016986,2]
[389531522,1759701045047,-500.0,0.00016986,2]
[389531523,1759701045056,-500.0,0.00016986,2]
[389531524,1759701045069,-500.0,0.00016986,2]
[389531525,1759701045078,-500.0,0.00016986,2]
[389531526,1759701045087,-500.0,0.00016986,2]
[389531527,1759701045096,-1250.2,0.00016986,2]
[389531528,1759701045105,-488.54014687,0.00016986,2]
[389531529,1759701045115,-500.0,0.00016986,2]
[389531530,1759701045124,-644.21,0.00016986,2]
[389531531,1759701045133,-500.0,0.00016986,2]
[389531532,1759701045145,-500.0,0.00016986,2]
[389531533,1759701045154,-500.0,0.00016986,2]
[389531534,1759701045164,-500.0,0.00016986,2]
[389531535,1759701045173,-500.0,0.00016986,2]
[389531536,1759701045182,-500.0,0.00016986,2]
[389531537,1759701045192,-514.4,0.00016986,2]
[389531538,1759701045201,-818.95,0.00016986,2]
[389531539,1759701045210,-229.67497462,0.00016986,2]
[389531540,1759701045218,-500.0,0.00016986,2]
[389531541,1759701045228,-1066.9,0.00016986,2]
[389531542,1759701045236,-500.0,0.00016986,2]
[389531543,1759701045245,-1302.17,0.00016986,2]
[389531544,1759701045254,-500.0,0.00016986,2]
[389531545,1759701045263,-500.0,0.00016986,2]
[389531546,1759701045272,-3084.86,0.00016986,2]
[389531547,1759701045281,-500.0,0.00016986,2]
[389531548,1759701045291,-500.0,0.00016986,2]
[389531549,1759701045300,-500.0,0.00016986,2]
[389531550,1759701045309,-500.0,0.00016986,2]
[389531551,1759701045318,-633.59,0.00016986,2]
[389531552,1759701045329,-9796.56,0.00016986,2]
[389531553,1759701045338,-500.0,0.00016986,2]
[389531554,1759701045348,-500.0,0.00016986,2]
[389531555,1759701045357,-500.0,0.00016986,2]
[389531556,1759701045367,-500.0,0.00016986,2]
[389531557,1759701045376,-819.44,0.00016986,2]
[389531558,1759701045385,-500.0,0.00016986,2]
[389531559,1759701045395,-13973.93,0.00016986,2]
[389531560,1759701045404,-500.0,0.00016986,2]
[389531561,1759701045414,-765.62,0.00016986,2]
[389531562,1759701045423,-500.0,0.00016986,2]
[389531563,1759701045432,-1192.52,0.00016986,2]
[389531564,1759701045441,-500.0,0.00016986,2]
[389531565,1759701045451,-2451.55,0.00016986,2]
[389531566,1759701045460,-1908.63,0.00016986,2]
[389531567,1759701045468,-500.0,0.00016986,2]
[389531568,1759701045477,-2030.42,0.00016986,2]
[389531569,1759701045487,-500.0,0.00016986,2]
[389531570,1759701045496,-500.0,0.00016986,2]
[389531571,1759701045505,-500.0,0.00016986,2]
[389531572,1759701045514,-760.73,0.00016986,2]
[389531573,1759701045523,-938.65,0.00016986,2]
[389531574,1759701045532,-500.0,0.00016986,2]
[389531575,1759701045541,-500.0,0.00016986,2]
[389531576,1759701045550,-603.23,0.00016986,2]
[389531577,1759701045559,-500.0,0.00016986,2]
[389531578,1759701045568,-913.57,0.00016986,2]
[389531579,1759701045577,-500.0,0.00016986,2]
[389531580,1759701045586,-500.0,0.00016986,2]
[389531581,1759701045596,-2271.44,0.00016986,2]
[389531582,1759701045604,-3634.93,0.00016986,2]
[389531583,1759701045615,-535.48,0.00016986,2]
[389531584,1759701045624,-896.59,0.00016986,2]
[389531585,1759701045633,-660.43,0.00016986,2]
[389531586,1759701045642,-1468.1,0.00016986,2]
[389531587,1759701045651,-500.0,0.00016986,2]
[389531589,1759701045660,-726.07,0.00016986,2]
[389531590,1759701045669,-500.0,0.00016986,2]
[389531591,1759701045679,-500.0,0.00016986,2]
[389531592,1759701045688,-500.0,0.00016986,2]
[389531593,1759701045697,-499.82236058,0.00016986,2]
[389531594,1759701045707,-500.0,0.00016986,2]
[389531595,1759701045716,-1652.1,0.00016986,2]
[389531596,1759701045725,-500.0,0.00016986,2]
[389531597,1759701045734,-834.0,0.00016986,2]
[389531598,1759701045743,-500.0,0.00016986,2]
[389531599,1759701045752,-500.0,0.00016986,2]
[389531600,1759701045761,-525.45,0.00016986,2]
[389531601,1759701045770,-500.0,0.00016986,2]
[389531603,1759701045779,-500.0,0.00016986,2]
[389531604,1759701045788,-500.0,0.00016986,2]
[389531605,1759701045799,-500.0,0.00016986,2]
[389531606,1759701045809,-677.13,0.00016986,2]
[389531607,1759701045819,-500.0,0.00016986,2]
[389531608,1759701045828,-840.65,0.00016986,2]
[389531609,1759701045838,-3337.58,0.00016986,2]
[389531610,1759701045847,-1067.09,0.00016986,2]
[389531611,1759701045857,-8928.5,0.00016986,2]
[389531612,1759701045866,-500.0,0.00016986,2]
[389531613,1759701045875,-500.0,0.00016986,2]
[389531614,1759701045885,-500.0,0.00016986,2]
[389531615,1759701045894,-539.83,0.00016986,2]
[389531616,1759701045903,-500.0,0.00016986,2]
[389531617,1759701045912,-612.5,0.00016986,2]
[389531618,1759701045921,-561.82,0.00016986,2]
[389531619,1759701045930,-500.0,0.00016986,2]
[389531620,1759701045939,-2156.17,0.00016986,2]
[389531621,1759701045948,-5070.75,0.00016986,2]
[389531622,1759701045957,-317.75780789,0.00016986,2]
[389531623,1759701045966,-1988.16,0.00016986,2]
[389531624,1759701045975,-768.65,0.00016986,2]
[389531625,1759701045985,-500.0,0.00016986,2]
[389531626,1759701045993,-500.0,0.00016986,2]
[389531627,1759701046003,-500.0,0.00016986,2]
[389531628,1759701046012,-500.0,0.00016986,2]
[389531629,1759701046021,-500.0,0.00016986,2]
[389531630,1759701046030,-4717.08,0.00016986,2]
[389531631,1759701046039,-500.0,0.00016986,2]
[389531632,1759701046048,-819.27,0.00016986,2]
[389531633,1759701046057,-500.0,0.00016986,2]
[389531634,1759701046066,-9745.82,0.00016986,2]
[389531635,1759701046075,-716.61,0.00016986,2]
[389531636,1759701046089,-1089.67,0.00016986,2]
[389531637,1759701046098,-500.0,0.00016986,2]
[389531638,1759701046107,-211.30432164,0.00017059,2]
[389531639,1759701046117,-348.0,0.00017236,2]
[389531640,1759701046127,-500.0,0.0001726,2]
[389531641,1759701046136,-500.0,0.0001726,2]
[389531642,1759701046145,-500.0,0.0001726,2]
[389531643,1759701046155,-552.1,0.0001726,2]
[389531644,1759701046164,-500.0,0.0001726,2]
[389531645,1759701046173,-500.0,0.0001726,2]
[389531646,1759701046182,-500.0,0.0001726,2]
[389531647,1759701046192,-500.0,0.0001726,2]
[389531648,1759701046202,-500.0,0.0001726,2]
[389531649,1759701046210,-500.0,0.0001726,2]
[389531650,1759701046220,-250.42733758,0.0001726,2]
[389531651,1759701046397,-249.57266242,0.0001726,2]
[389531652,1759701046406,-500.0,0.0001726,2]
[389531653,1759701046415,-500.0,0.0001726,2]
[389531654,1759701046424,-500.0,0.0001726,2]
[389531655,1759701046434,-500.0,0.0001726,2]
[389531656,1759701046443,-500.0,0.0001726,2]
[389531657,1759701046452,-500.0,0.0001726,2]
[389531658,1759701046461,-500.0,0.0001726,2]
[389531659,1759701046470,-1523.87,0.0001726,2]
[389531660,1759701046479,-500.0,0.0001726,2]
[389531661,1759701046488,-500.0,0.0001726,2]
[389531662,1759701046497,-500.0,0.0001726,2]
[389531663,1759701046506,-500.0,0.0001726,2]
[389531664,1759701046515,-500.0,0.0001726,2]
[389531665,1759701046524,-104.45514913,0.0001726,2]
[389531666,1759701046948,-500.0,0.00016438,2]
[389531667,1759701046958,-19.464904,0.00016438,2]
[389531668,1759701046969,-303.81059378,0.00016438,2]
[389531669,1759701046981,-176.72450222,0.00016438,2]
[389531670,1759701046990,-500.0,0.00016712,2]
[389531671,1759701047000,-395.54485087,0.0001726,2]
[389531672,1759701047010,-500.0,0.0001726,2]
[389531673,1759701047020,-500.0,0.0001726,2]
[389531674,1759701047030,-837.66,0.0001726,2]
[389531675,1759701047040,-500.0,0.0001726,2]
[389531676,1759701047049,-500.0,0.0001726,2]
[389531677,1759701047058,-1256.54,0.0001726,2]
[389531678,1759701047068,-500.0,0.0001726,2]
[389531679,1759701047078,-500.0,0.0001726,2]
[389531680,1759701047090,-462.29215087,0.0001726,2]
[389531681,1759701047100,-500.0,0.0001726,2]
[389531682,1759701047111,-500.0,0.0001726,2]
[389531683,1759701047120,-723.41,0.0001726,2]
[389531684,1759701047130,-500.0,0.0001726,2]
[389531685,1759701047139,-500.0,0.0001726,2]
[389531686,1759701047149,-647.73,0.0001726,2]
[389531687,1759701047160,-500.0,0.0001726,2]
[389531688,1759701047170,-207.63886802,0.0001726,2]
[389531689,1759701047322,-500.0,0.00016274,2]
[389531690,1759701047332,-500.0,0.00016438,2]
[389531691,1759701047342,-500.0,0.00016712,2]
[389531692,1759701047351,-500.0,0.00016986,2]
[389531693,1759701047361,-292.36113198,0.0001726,2]
[389531694,1759701047370,-500.0,0.0001726,2]
[389531695,1759701047380,-450.50946794,0.0001726,2]
[389531696,1759701047391,-49.49053206,0.0001726,2]
[389531697,1759701047401,-500.0,0.0001726,2]
[389531698,1759701047410,-500.0,0.0001726,2]
[389531699,1759701047420,-500.0,0.0001726,2]
[389531700,1759701047429,-629.62,0.0001726,2]
[389531701,1759701047438,-500.9,0.0001726,2]
[389531702,1759701047447,-119.98946794,0.0001726,2]
[389531703,1759701077749,1444.0,0.00027589,120]
[389531704,1759701082163,200.0,0.0003178,120]
[389531707,1759701256055,1000.0,0.00028493,120]
[389531708,1759701256296,1000.0,0.0002852,120]
[389531709,1759701256530,1000.0,0.00028547,120]
[389531710,1759701256893,1000.0,0.00028575,120]
[389531711,1759701257136,1000.0,0.00028602,120]
[389531712,1759701257431,1000.0,0.0002863,120]
[389531713,1759701257763,1000.0,0.00028657,120]
[389531714,1759701258001,1000.0,0.00028684,120]
[389531715,1759701258235,1000.0,0.00028712,120]
[389531716,1759701258455,1000.0,0.00028739,120]
[389531717,1759701258689,1000.0,0.00028767,120]
[389531718,1759701309161,800.0,0.00028767,120]
[389531719,1759701317144,800.0,0.00028767,120]
[389531720,1759701324492,800.0,0.00028767,120]
[389531721,1759701366060,800.0,0.00028767,120]
[389531722,1759701383384,200.0,0.00031748,120]
[389531723,1759701540522,261.57,0.00028703,120]
[389531724,1759701554324,800.0,0.00028767,120]
[389531725,1759701561074,800.0,0.00028767,120]
[389531727,1759701630899,200.0,0.00027951,120]
[389531728,1759701633278,5000.0,0.0002012,9]
[389531729,1759701648823,3036.94312771,0.0002012,9]
[389531730,1759701656834,5000.0,0.0002012,9]
[389531731,1759701682614,200.0,0.00031765,120]
[389531733,1759701818591,3000.0,0.00028767,120]
[389531734,1759701866598,1444.0,0.00027589,120]
[389531735,1759701871287,1000.0,0.00028493,120]
[389531736,1759701871520,1080.05091888,0.0002852,120]
[389531737,1759701907279,2224.5,0.0002876,120]
[389531739,1759701939956,316.0,0.00026376,120]
[389531740,1759701941416,316.0,0.00027695,120]
[389531741,1759701982732,200.0,0.00031777,120]
[389531742,1759701990735,200.0,0.00026323,120]
[389531743,1759701999878,818.34848858,0.00031777,120]
[389531744,1759702016634,205.85100447,0.00031777,120]
[389531803,1759702232397,-300.0,0.00016338,2]
[389531805,1759702232408,-164.45970799,0.00016338,2]
[389531807,1759702232417,-151.20300195,0.00016428,2]
[389531809,1759702232426,-300.0,0.00016436,2]
[389531811,1759702232435,-1200.0,0.00016436,2]
[389531813,1759702232445,-500.0,0.00016437,2]
[389531815,1759702232455,-197.2284059,0.00016437,2]
[389531817,1759702232464,-500.0,0.00016437,2]
[389531819,1759702232473,-500.0,0.00016437,2]
[389531821,1759702232483,-500.0,0.00016437,2]
[389531823,1759702232492,-500.0,0.00016437,2]
[389531825,1759702232502,-500.0,0.00016437,2]
[389531826,1759702232511,-450.0,0.00016437,2]
[389531828,1759702232520,-500.0,0.00016437,2]
[389531830,1759702232535,-500.0,0.00016437,2]
[389531832,1759702232544,-500.0,0.00016437,2]
[389531834,1759702232553,-500.0,0.00016437,2]
[389531836,1759702232563,-500.0,0.00016438,2]
[389531838,1759702232574,-157.33484041,0.00016438,2]
[389531840,1759702232583,-500.0,0.00016438,2]
[389531842,1759702232591,-156.88527175,0.00016438,2]
[389531848,1759702232616,-343.11472825,0.00016438,2]
[389531851,1759702232625,-500.0,0.00016438,2]
[389531854,1759702232634,-101.30161997,0.00016438,2]
[389531862,1759702232668,190.0,0.00026572,120]
[389531977,1759702233770,190.0,0.000279,120]
[389531998,1759702238345,-398.69838003,0.00016438,2]
[389531999,1759702238354,-500.0,0.00016438,2]
[389532000,1759702238365,-500.0,0.00016438,2]
[389532001,1759702238375,-500.0,0.00016438,2]
[389532002,1759702238385,-500.0,0.00016438,2]
[389532003,1759702238394,-500.0,0.00016438,2]
[389532004,1759702238403,-500.0,0.00016438,2]
[389532006,1759702238413,-391.74709679,0.00016438,2]
[389532007,1759702238423,-500.0,0.00016438,2]
[389532008,1759702238433,-500.0,0.00016438,2]
[389532010,1759702238442,-500.0,0.00016438,2]
[389532012,1759702238452,-500.0,0.00016438,2]
[389532013,1759702238461,-526.34,0.00016438,2]
[389532014,1759702238471,-500.0,0.00016438,2]
[389532015,1759702238480,-500.0,0.00016438,2]
[389532016,1759702238490,-1483.08,0.00016438,2]
[389532017,1759702238499,-500.0,0.00016438,2]
[389532018,1759702238508,-500.0,0.00016438,2]
[389532019,1759702238518,-500.0,0.00016438,2]
[389532020,1759702238532,-500.0,0.00016438,2]
[389532021,1759702238542,-500.0,0.00016438,2]
[389532022,1759702238551,-500.0,0.00016438,2]
[389532023,1759702238561,-500.0,0.00016438,2]
[389532024,1759702238571,-500.0,0.00016438,2]
[389532025,1759702238580,-500.0,0.00016438,2]
[389532026,1759702238589,-500.0,0.00016438,2]
[389532027,1759702238601,-500.0,0.00016438,2]
[389532028,1759702238611,-500.0,0.00016438,2]
[389532029,1759702238621,-721.72,0.00016438,2]
[389532030,1759702238631,-1242.45,0.00016438,2]
[389532031,1759702238640,-500.0,0.00016438,2]
[389532032,1759702238649,-500.0,0.00016438,2]
[389532033,1759702238659,-500.0,0.00016438,2]
[389532034,1759702238668,-500.0,0.00016438,2]
[389532035,1759702238678,-500.0,0.00016438,2]
[389532036,1759702238687,-795.46,0.00016438,2]
[389532037,1759702238696,-500.0,0.00016438,2]
[389532038,1759702238706,-500.0,0.00016438,2]
[389532039,1759702238716,-500.0,0.00016438,2]
[389532040,1759702238725,-500.0,0.00016438,2]
[389532041,1759702238734,-500.0,0.00016438,2]
[389532042,1759702238744,-500.0,0.00016438,2]
[389532043,1759702238754,-470.33937899,0.00016438,2]
[389532044,1759702238763,-694.4,0.00016438,2]
[389532045,1759702238773,-500.0,0.00016438,2]
[389532046,1759702238783,-500.0,0.00016438,2]
[389532047,1759702238792,-500.0,0.00016438,2]
[389532048,1759702238801,-500.0,0.00016438,2]
[389532049,1759702238810,-500.0,0.00016438,2]
[389532050,1759702238820,-338.48811205,0.00016438,2]
[389532051,1759702238829,-500.0,0.00016438,2]
[389532052,1759702238839,-500.0,0.00016438,2]
[389532053,1759702238848,-500.0,0.00016438,2]
[389532054,1759702238858,-500.0,0.00016438,2]
[389532055,1759702238867,-508.62,0.00016438,2]
[389532056,1759702238877,-626.09,0.00016438,2]
[389532057,1759702238886,-500.0,0.00016438,2]
[389532058,1759702238895,-500.0,0.00016438,2]
[389532059,1759702238904,-500.0,0.00016438,2]
[389532060,1759702238914,-500.0,0.00016438,2]
[389532061,1759702238923,-500.0,0.00016438,2]
[389532062,1759702238932,-826.0,0.00016438,2]
[389532063,1759702238942,-504.78893653,0.00016438,2]
[389532064,1759702238951,-500.0,0.00016438,2]
[389532065,1759702238960,-500.0,0.00016438,2]
[389532066,1759702238970,-500.0,0.00016438,2]
[389532067,1759702238979,-500.0,0.00016438,2]
[389532068,1759702238989,-500.0,0.00016438,2]
[389532069,1759702238998,-500.0,0.00016438,2]
[389532070,1759702239008,-500.0,0.00016438,2]
[389532071,1759702239018,-500.0,0.00016438,2]
[389532072,1759702239027,-500.0,0.00016438,2]
[389532073,1759702239037,-1302.91,0.00016438,2]
[389532074,1759702239047,-660.82,0.00016438,2]
[389532075,1759702239056,-500.0,0.00016438,2]
[389532076,1759702239067,-488.54014687,0.00016438,2]
[389532077,1759702239077,-500.0,0.00016438,2]
[389532078,1759702239087,-500.0,0.00016438,2]
[389532079,1759702239097,-500.0,0.00016438,2]
[389532080,1759702239106,-500.0,0.00016438,2]
[389532081,1759702239116,-500.0,0.00016438,2]
[389532082,1759702239126,-262.27717494,0.00016438,2]
[389532083,1759702239136,-500.0,0.00016438,2]
[389532084,1759702239145,-500.0,0.00016438,2]
[389532085,1759702239155,-317.75780789,0.00016438,2]
[389532086,1759702239165,-500.0,0.00016438,2]
[389532087,1759702239174,-500.0,0.00016438,2]
[389532088,1759702239184,-500.0,0.00016438,2]
[389532089,1759702239194,-500.0,0.00016438,2]
[389532090,1759702239203,-500.0,0.00016438,2]
[389532091,1759702239213,-870.27,0.00016438,2]
[389532092,1759702239222,-634.35,0.00016438,2]
[389532093,1759702239232,-525.99,0.00016438,2]
[389532094,1759702239241,-500.0,0.00016438,2]
[389532095,1759702239250,-500.0,0.00016438,2]
[389532096,1759702239260,-1210.19,0.00016438,2]
[389532097,1759702239270,-500.0,0.00016438,2]
[389532098,1759702239279,-500.0,0.00016438,2]
[389532099,1759702239289,-500.0,0.00016438,2]
[389532100,1759702239299,-334.53589122,0.00016438,2]
[389532101,1759702239308,-837.23,0.00016438,2]
[389532102,1759702239319,-500.0,0.00016438,2]
[389532103,1759702239328,-1574.85,0.00016438,2]
[389532104,1759702239338,-500.0,0.00016438,2]
[389532105,1759702239348,-500.0,0.00016438,2]
[389532106,1759702239559,-1163.07,0.00016438,2]
[389532107,1759702239572,-520.91,0.00016438,2]
[389532108,1759702239582,-500.0,0.00016438,2]
[389532109,1759702239593,-3168.37,0.00016438,2]
[389532110,1759702239603,-480.0,0.00016438,2]
[389532111,1759702239613,-500.0,0.00016438,2]
[389532112,1759702239624,-567.98,0.00016438,2]
[389532113,1759702239633,-500.0,0.00016438,2]
[389532114,1759702239643,-516.39,0.00016438,2]
[389532115,1759702239652,-500.0,0.00016438,2]
[389532116,1759702239661,-2000.0,0.00016438,2]
[389532117,1759702239671,-500.0,0.00016438,2]
[389532118,1759702239680,-1370.67,0.00016438,2]
[389532119,1759702239689,-500.0,0.00016438,2]
[389532120,1759702239699,-9512.92,0.00016438,2]
[389532121,1759702239709,-4367.85,0.00016438,2]
[389532122,1759702239718,-574.05,0.00016438,2]
[389532123,1759702239728,-500.0,0.00016438,2]
[389532124,1759702239737,-500.0,0.00016438,2]
[389532125,1759702239746,-647.93,0.00016438,2]
[389532126,1759702239755,-726.18,0.00016438,2]
[389532127,1759702239765,-500.0,0.00016438,2]
[389532128,1759702239775,-500.0,0.00016438,2]
[389532129,1759702239784,-819.75,0.00016438,2]
[389532130,1759702239794,-500.0,0.00016438,2]
[389532131,1759702239803,-500.0,0.00016438,2]
[389532132,1759702239813,-500.0,0.00016438,2]
[389532133,1759702239822,-1020.8,0.00016438,2]
[389532134,1759702239832,-503.56,0.00016438,2]
[389532135,1759702239842,-13497.62,0.00016438,2]
[389532136,1759702239851,-500.0,0.00016438,2]
[389532137,1759702239860,-500.0,0.00016438,2]
[389532138,1759702239870,-1138.66,0.00016438,2]
[389532139,1759702239879,-689.31,0.00016438,2]
[389532140,1759702239889,-838.71,0.00016438,2]
[389532141,1759702239899,-535.43,0.00016438,2]
[389532143,1759702239908,-500.0,0.00016438,2]
[389532145,1759702239918,-1340.33,0.00016438,2]
[389532147,1759702239927,-500.0,0.00016438,2]
[389532149,1759702239937,-500.0,0.00016438,2]
[389532151,1759702239946,-2553.03,0.00016438,2]
[389532153,1759702239956,-2750.26,0.00016438,2]
[389532155,1759702239965,-2055.77,0.00016438,2]
[389532157,1759702239975,-500.0,0.00016438,2]
[389532159,1759702239984,-500.0,0.00016438,2]
[389532161,1759702239993,-547.48,0.00016438,2]
[389532163,1759702240002,-500.0,0.00016438,2]
[389532165,1759702240011,-2441.3,0.00016438,2]
[389532166,1759702240020,-500.0,0.00016438,2]
[389532168,1759702240030,-500.0,0.00016438,2]
[389532170,1759702240040,-500.0,0.00016438,2]
[389532172,1759702240049,-500.0,0.00016438,2]
[389532174,1759702240059,-525.09,0.00016438,2]
[389532176,1759702240068,-500.0,0.00016438,2]
[389532178,1759702240078,-500.0,0.00016438,2]